[Event "NJSK 2021 Jeugd C"]
[Site "Almelo, Netherlands"]
[Date "2021.08.03"]
[Round "3.12"]
[White "Lankheet, Hidde"]
[Black "Krylov, Philippe"]
[Result "0-1"]
[TimeControl "90min + 30sec/move"]
[WhiteElo "1000"]
[BlackElo "1339"]

1. e4 {[%clk 01:30:59]} c6 {[%clk 01:30:54]} {[%emt 00:00:07]} 2. d4 {[%clk
01:31:19]} {[%emt 00:00:10]} d5 {[%clk 01:31:21]} {[%emt 00:00:03]} 3. e5
{[%clk 01:31:36]} {[%emt 00:00:13]} Bf5 {[%clk 01:31:45]} {[%emt 00:00:05]} 4.
h4 {[%clk 01:31:52]} {[%emt 00:00:15]} h5 {[%clk 01:32:09]} {[%emt 00:00:06]} 5.
Bd3 {[%clk 01:32:08]} {[%emt 00:00:13]} Bxd3 {[%clk 01:32:13]} {[%emt
00:00:27]} 6. Qxd3 {[%clk 01:32:32]} {[%emt 00:00:06]} e6 {[%clk 01:32:20]}
{[%emt 00:00:22]} 7. Nf3 {[%clk 01:32:44]} {[%emt 00:00:19]} Nd7 {[%clk
01:32:22]} {[%emt 00:00:28]} 8. Be3 {[%clk 01:32:34]} {[%emt 00:00:40]} Ne7
{[%clk 01:32:32]} {[%emt 00:00:19]} 9. Nbd2 {[%clk 01:32:07]} {[%emt 00:00:57]}
Nf5 {[%clk 01:32:44]} {[%emt 00:00:18]} 10. c3 {[%clk 01:31:34]} {[%emt
00:01:04]} Be7 {[%clk 01:32:55]} {[%emt 00:00:19]} 11. Bg5 {[%clk 01:29:52]}
{[%emt 00:02:12]} Bxg5 {[%clk 01:32:32]} {[%emt 00:00:52]} 12. hxg5 {[%clk
01:27:55]} {[%emt 00:02:28]} g6 {[%clk 01:31:27]} {[%emt 00:01:35]} 13. g4
{[%clk 01:25:08]} {[%emt 00:03:16]} Ng7 {[%clk 01:31:53]} {[%emt 00:00:05]} 14.
Qe3 {[%clk 01:22:35]} {[%emt 00:03:02]} Qb6 {[%clk 01:30:40]} {[%emt 00:01:43]}
15. O-O-O {[%clk 01:20:39]} {[%emt 00:02:26]} O-O-O {[%clk 01:25:33]} {[%emt
00:05:38]} 16. gxh5 {[%clk 01:20:35]} {[%emt 00:00:34]} Nxh5 {[%clk 01:24:50]}
{[%emt 00:01:13]} 17. Nh2 {[%clk 01:17:39]} {[%emt 00:03:26]} Ng7 {[%clk
01:24:39]} {[%emt 00:00:41]} 18. Ng4 {[%clk 01:17:47]} {[%emt 00:00:21]} Nf5
{[%clk 01:24:51]} {[%emt 00:00:18]} 19. Nh6 {[%clk 01:16:49]} {[%emt 00:01:29]}
Nxe3 {[%clk 01:25:07]} {[%emt 00:00:14]} 0-1

[Event "NJSK 2021 Jeugd C"]
[Site "Almelo, Netherlands"]
[Date "2021.08.03"]
[Round "4.1"]
[White "De Winter, Arthur"]
[Black "Kumar, Prajit Sai"]
[Result "1/2-1/2"]
[TimeControl "90min + 30sec/move"]
[WhiteElo "2000"]
[BlackElo "1811"]

1. e4 {[%clk 01:30:57]} {[%emt 00:00:02]} c6 {[%clk 01:30:56]} {[%emt
00:00:04]} 2. d4 {[%clk 01:31:24]} {[%emt 00:00:04]} d5 {[%clk 01:31:25]}
{[%emt 00:00:01]} 3. e5 {[%clk 01:31:51]} {[%emt 00:00:03]} Bf5 {[%clk
01:31:49]} {[%emt 00:00:06]} 4. h4 {[%emt 00:00:06]} h5 5. c4 {[%clk 01:31:47]}
{[%emt 00:00:28]} e6 {[%clk 01:32:15]} {[%emt 00:00:04]} 6. Nc3 {[%clk
01:32:11]} {[%emt 00:00:07]} dxc4 {[%clk 01:32:39]} {[%emt 00:00:05]} 7. Bxc4
{[%clk 01:32:07]} {[%emt 00:00:34]} Nd7 {[%clk 01:33:03]} {[%emt 00:00:05]} 8.
Nge2 {[%clk 01:31:05]} {[%emt 00:01:32]} Be7 {[%clk 01:33:21]} {[%emt
00:00:13]} 9. Ng3 {[%clk 01:25:09]} {[%emt 00:06:25]} Bg6 {[%clk 01:33:21]}
{[%emt 00:00:30]} 10. Nge4 {[%clk 01:21:17]} {[%emt 00:04:22]} Nh6 {[%clk
01:28:05]} {[%emt 00:05:46]} 11. Bxh6 {[%clk 01:15:00]} {[%emt 00:06:46]} Rxh6
{[%clk 01:28:02]} {[%emt 00:00:34]} 12. g3 {[%clk 01:06:23]} Nb6 {[%clk
01:28:02]} 13. Be2 {[%clk 01:06:23]} Qd7 {[%clk 01:28:02]} 14. Qd2 {[%clk
01:06:23]} Rh8 {[%clk 01:28:02]} 15. O-O {[%clk 01:06:23]} O-O-O {[%clk
01:28:02]} 16. Rfd1 {[%clk 01:06:23]} Nd5 {[%clk 01:28:02]} 17. a3 {[%clk
01:06:23]} Nxc3 {[%clk 01:28:02]} 18. Nxc3 {[%clk 01:06:23]} Bf5 {[%clk
01:28:02]} 19. b4 {[%clk 01:06:23]} Kb8 {[%clk 01:28:02]} 20. Qe3 {[%clk
01:06:23]} a6 {[%clk 01:28:02]} 21. Ne4 {[%clk 01:06:23]} Bxe4 {[%clk
01:28:02]} 22. Qxe4 {[%clk 01:06:23]} g5 {[%clk 01:28:02]} 23. hxg5 {[%clk
01:06:23]} Bxg5 {[%clk 01:28:02]} 24. a4 {[%clk 01:06:23]} h4 {[%clk 01:28:02]}
25. b5 {[%clk 01:06:23]} hxg3 {[%clk 01:28:02]} 26. f4 {[%clk 01:06:23]} f5
{[%clk 00:19:29]} {[%emt 02:18:39]} 27. Qf3 {[%clk 00:17:18]} {[%emt 00:03:06]}
Qh7 {[%clk 00:14:37]} {[%emt 00:05:22]} 28. fxg5 {[%clk 00:17:26]} {[%emt
00:00:21]} Qh2+ {[%clk 00:14:56]} {[%emt 00:00:11]} 29. Kf1 {[%clk 00:17:52]}
{[%emt 00:00:04]} g2+ {[%clk 00:15:10]} {[%emt 00:00:17]} 30. Qxg2 {[%clk
00:18:10]} {[%emt 00:00:11]} Qf4+ {[%clk 00:15:19]} {[%emt 00:00:20]} 1/2-1/2

[Event "NJSK 2021 Jeugd C"]
[Site "Almelo, Netherlands"]
[Date "2021.08.03"]
[Round "4.2"]
[White "Arnold, Rhys"]
[Black "Kurt, Sascha"]
[Result "1-0"]
[TimeControl "90min + 30sec/move"]
[WhiteElo "1748"]
[BlackElo "1650"]

1. e4 {[%clk 01:30:45]} {[%emt 00:00:14]} e5 {[%clk 01:30:56]} {[%emt
00:00:05]} 2. d4 {[%clk 01:30:50]} {[%emt 00:00:24]} exd4 {[%clk 01:31:19]}
{[%emt 00:00:08]} 3. c3 {[%clk 01:31:13]} {[%emt 00:00:06]} dxc3 {[%clk
01:31:44]} {[%emt 00:00:05]} 4. Nxc3 {[%clk 01:31:35]} {[%emt 00:00:08]} Bc5
{[%clk 01:32:06]} {[%emt 00:00:09]} 5. Bc4 {[%clk 01:31:50]} {[%emt 00:00:15]}
d6 {[%clk 01:32:26]} {[%emt 00:00:10]} 6. Nf3 {[%clk 01:24:28]} {[%emt
00:07:52]} Nc6 {[%clk 01:30:56]} {[%emt 00:02:00]} 7. O-O {[%clk 01:15:30]}
{[%emt 00:09:28]} Be6 {[%clk 01:28:34]} {[%emt 00:02:52]} 8. Bxe6 {[%clk
01:15:48]} {[%emt 00:00:12]} fxe6 {[%clk 01:28:59]} {[%emt 00:00:05]} 9. Qb3
{[%clk 01:16:04]} {[%emt 00:00:13]} Qc8 {[%clk 01:28:50]} {[%emt 00:00:40]} 10.
Be3 {[%clk 01:04:10]} {[%emt 00:12:23]} Bb6 {[%clk 01:27:33]} {[%emt 00:01:48]}
11. Ng5 {[%clk 01:03:16]} {[%emt 00:01:22]} Ke7 {[%clk 01:26:15]} {[%emt
00:01:49]} 12. Bxb6 {[%clk 00:59:46]} {[%emt 00:04:01]} axb6 {[%clk 01:26:33]}
{[%emt 00:00:11]} 13. f4 {[%clk 00:59:48]} {[%emt 00:00:27]} h6 {[%clk
01:26:02]} {[%emt 00:01:02]} 14. Nf3 {[%clk 00:59:42]} {[%emt 00:00:36]} Na5
{[%clk 01:22:43]} {[%emt 00:03:49]} 15. Qc2 {[%clk 00:59:16]} {[%emt 00:00:55]}
h5 {[%clk 01:19:02]} {[%emt 00:04:11]} 16. e5 {[%clk 00:58:28]} {[%emt
00:01:18]} d5 {[%clk 01:18:48]} {[%emt 00:00:45]} 17. f5 {[%clk 00:58:45]}
{[%emt 00:00:13]} Nh6 {[%clk 01:16:54]} {[%emt 00:02:24]} 18. fxe6 {[%clk
00:58:26]} {[%emt 00:00:49]} Qxe6 {[%clk 01:17:07]} {[%emt 00:00:17]} 19. Rad1
{[%clk 00:56:31]} {[%emt 00:02:24]} Rad8 {[%clk 01:16:28]} {[%emt 00:01:09]} 20.
Nd4 {[%clk 00:54:53]} {[%emt 00:02:09]} Qg4 {[%clk 01:13:26]} {[%emt 00:03:31]}
21. b4 {[%clk 00:45:47]} {[%emt 00:09:37]} Nc4 {[%clk 01:11:01]} {[%emt
00:02:55]} 22. Nxd5+ {[%clk 00:46:01]} {[%emt 00:00:16]} Rxd5 {[%clk 01:10:53]}
{[%emt 00:00:38]} 23. Qxc4 {[%clk 00:46:22]} {[%emt 00:00:09]} Rhd8 {[%clk
01:09:46]} {[%emt 00:01:37]} 24. Nf5+ {[%clk 00:36:40]} {[%emt 00:10:12]} Nxf5
{[%clk 01:09:58]} {[%emt 00:00:18]} 25. Qxg4 {[%clk 00:36:49]} {[%emt
00:00:20]} hxg4 {[%clk 01:10:13]} {[%emt 00:00:16]} 26. Rxd5 {[%clk 00:37:12]}
{[%emt 00:00:07]} Rxd5 {[%clk 01:10:35]} {[%emt 00:00:08]} 27. Rxf5 {[%clk
00:37:38]} {[%emt 00:00:04]} Ke6 {[%clk 01:10:46]} {[%emt 00:00:19]} 28. Rg5
{[%clk 00:36:58]} {[%emt 00:01:09]} Rxe5 {[%clk 01:10:58]} {[%emt 00:00:19]} 29.
Rxg7 {[%clk 00:37:08]} {[%emt 00:00:18]} Kd6 {[%clk 01:10:49]} {[%emt
00:00:41]} 30. Rxg4 {[%clk 00:36:33]} {[%emt 00:01:05]} Re1+ {[%clk 01:11:09]}
{[%emt 00:00:10]} 31. Kf2 {[%clk 00:36:59]} {[%emt 00:00:03]} Ra1 {[%clk
01:11:25]} {[%emt 00:00:14]} 32. h4 {[%clk 00:31:29]} {[%emt 00:06:01]} Rxa2+
{[%clk 01:11:51]} {[%emt 00:00:04]} 33. Kg3 {[%clk 00:31:51]} {[%emt 00:00:08]}
c5 {[%clk 01:11:31]} {[%emt 00:00:51]} 34. h5 {[%clk 00:28:50]} {[%emt
00:03:29]} Ra1 {[%clk 01:11:12]} {[%emt 00:00:49]} 35. h6 {[%clk 00:27:43]}
{[%emt 00:01:37]} Ra8 {[%clk 01:11:00]} {[%emt 00:00:42]} 36. Kh4 {[%clk
00:26:36]} {[%emt 00:01:37]} Rh8 {[%clk 01:09:57]} {[%emt 00:01:33]} 37. Kh5
{[%clk 00:26:51]} {[%emt 00:00:15]} cxb4 {[%clk 01:09:11]} {[%emt 00:01:17]} 38.
Rxb4 {[%clk 00:25:54]} {[%emt 00:01:26]} Kc5 {[%clk 01:09:13]} {[%emt
00:00:29]} 39. Rb1 {[%clk 00:25:27]} {[%emt 00:00:56]} Kd6 {[%clk 01:06:52]}
{[%emt 00:02:52]} 40. Rxb6+ {[%clk 00:25:09]} {[%emt 00:00:48]} Ke5 {[%clk
01:07:11]} {[%emt 00:00:11]} 41. g4 {[%clk 00:25:04]} {[%emt 00:00:33]} Ra8
{[%clk 01:05:26]} {[%emt 00:02:17]} 42. g5 {[%clk 00:24:45]} {[%emt 00:00:49]}
Rf8 {[%clk 01:04:54]} {[%emt 00:01:01]} 43. h7 {[%clk 00:24:49]} {[%emt
00:00:26]} Ra8 {[%clk 01:04:52]} {[%emt 00:00:33]} 44. Rxb7 {[%clk 00:25:01]}
{[%emt 00:00:18]} Ke6 {[%clk 01:04:43]} {[%emt 00:00:39]} 45. Kg6 {[%clk
00:25:02]} {[%emt 00:00:28]} Rf8 {[%clk 01:04:23]} {[%emt 00:00:50]} 46. Kg7
{[%clk 00:25:18]} {[%emt 00:00:13]} Rf5 {[%clk 01:04:47]} {[%emt 00:00:07]} 47.
g6 {[%clk 00:25:30]} {[%emt 00:00:18]} Ra5 {[%clk 01:04:24]} {[%emt 00:00:53]}
48. h8=Q {[%clk 00:25:44]} {[%emt 00:00:16]} Kd5 {[%clk 01:04:02]} {[%emt
00:00:47]} 1-0

[Event "NJSK 2021 Jeugd C"]
[Site "Almelo, Netherlands"]
[Date "2021.08.03"]
[Round "4.3"]
[White "Ekker, Joshua"]
[Black "Labruyere, Roger"]
[Result "0-1"]
[TimeControl "90min + 30sec/move"]
[WhiteElo "1695"]
[BlackElo "2003"]

1. e4 {[%clk 01:30:58]} c6 {[%clk 01:30:53]} {[%emt 00:00:08]} 2. d4 {[%clk
01:31:23]} {[%emt 00:00:05]} d5 {[%clk 01:31:21]} {[%emt 00:00:02]} 3. exd5
{[%clk 01:31:44]} {[%emt 00:00:09]} cxd5 {[%clk 01:31:49]} {[%emt 00:00:02]} 4.
Bd3 {[%clk 01:32:04]} {[%emt 00:00:10]} Nc6 {[%clk 01:32:11]} {[%emt 00:00:08]}
5. c3 {[%clk 01:32:28]} {[%emt 00:00:06]} Nf6 {[%clk 01:32:35]} {[%emt
00:00:06]} 6. Bf4 {[%clk 01:32:15]} {[%emt 00:00:42]} Bg4 {[%clk 01:32:56]}
{[%emt 00:00:10]} 7. Qb3 {[%clk 01:32:30]} {[%emt 00:00:15]} Qd7 {[%clk
01:32:55]} {[%emt 00:00:29]} 8. Nd2 {[%clk 01:31:40]} {[%emt 00:01:21]} e6
{[%clk 01:32:31]} {[%emt 00:00:55]} 9. Ngf3 {[%clk 01:31:47]} {[%emt 00:00:23]}
a6 {[%clk 01:30:57]} {[%emt 00:02:04]} 10. Ne5 {[%clk 01:27:38]} {[%emt
00:04:39]} Nxe5 {[%clk 01:30:51]} {[%emt 00:00:36]} 11. Bxe5 {[%clk 01:27:25]}
{[%emt 00:00:43]} Be7 {[%clk 01:31:08]} {[%emt 00:00:13]} 12. O-O {[%clk
01:26:51]} {[%emt 00:01:03]} O-O {[%clk 01:31:29]} {[%emt 00:00:09]} 13. Qc2
{[%clk 01:26:00]} {[%emt 00:01:21]} Kh8 {[%clk 01:29:59]} {[%emt 00:02:00]} 14.
Nb3 {[%clk 01:22:27]} {[%emt 00:04:04]} b6 {[%clk 01:29:49]} {[%emt 00:00:40]}
15. Rfe1 {[%clk 01:18:07]} {[%emt 00:04:49]} Bh5 {[%clk 01:21:28]} {[%emt
00:08:51]} 16. Re3 {[%clk 01:11:37]} {[%emt 00:07:00]} Bg6 {[%clk 01:20:05]}
{[%emt 00:01:54]} 17. Rh3 {[%clk 01:05:19]} {[%emt 00:06:47]} Ne4 {[%clk
01:14:03]} {[%emt 00:06:32]} 18. Nd2 {[%clk 00:53:37]} {[%emt 00:12:13]} Ng5
{[%clk 01:00:15]} {[%emt 00:14:17]} 19. Rg3 {[%clk 00:49:10]} {[%emt 00:04:58]}
Bxd3 {[%clk 00:58:40]} {[%emt 00:02:05]} 20. Qxd3 {[%clk 00:49:14]} {[%emt
00:00:25]} f6 {[%clk 00:58:47]} {[%emt 00:00:23]} 21. Bf4 {[%clk 00:48:35]}
{[%emt 00:01:09]} Bd6 {[%clk 00:58:06]} {[%emt 00:01:12]} 22. Qe3 {[%clk
00:38:46]} {[%emt 00:10:19]} Bxf4 {[%clk 00:57:34]} {[%emt 00:01:02]} 23. Qxf4
{[%clk 00:36:38]} {[%emt 00:02:37]} b5 {[%clk 00:57:10]} {[%emt 00:00:54]} 24.
Qg4 {[%clk 00:31:52]} {[%emt 00:05:16]} h6 {[%clk 00:53:57]} {[%emt 00:03:42]}
25. Re1 {[%clk 00:29:38]} {[%emt 00:02:44]} Qf7 {[%clk 00:47:26]} {[%emt
00:07:00]} 26. Nb3 {[%clk 00:22:14]} {[%emt 00:07:56]} Ne4 {[%clk 00:45:49]}
{[%emt 00:02:05]} 27. Rge3 {[%clk 00:19:56]} {[%emt 00:02:49]} f5 {[%clk
00:44:19]} {[%emt 00:02:00]} 28. Qf4 {[%clk 00:18:07]} {[%emt 00:02:19]} Rae8
{[%clk 00:39:44]} {[%emt 00:05:06]} 29. f3 {[%clk 00:16:20]} {[%emt 00:02:17]}
e5 {[%clk 00:28:41]} {[%emt 00:11:33]} 30. Qh4 {[%clk 00:12:13]} {[%emt
00:04:35]} f4 {[%clk 00:28:04]} {[%emt 00:01:08]} 31. R3e2 {[%clk 00:12:02]}
{[%emt 00:00:42]} exd4 {[%clk 00:27:53]} {[%emt 00:00:41]} 32. fxe4 {[%clk
00:11:46]} {[%emt 00:00:45]} d3 {[%clk 00:28:16]} {[%emt 00:00:08]} 33. Rd2
{[%clk 00:09:57]} {[%emt 00:02:19]} dxe4 {[%clk 00:28:35]} {[%emt 00:00:09]} 34.
Nc5 {[%clk 00:08:12]} {[%emt 00:02:17]} Qf5 {[%clk 00:22:03]} {[%emt 00:07:01]}
35. Nxa6 {[%clk 00:05:46]} {[%emt 00:02:57]} e3 {[%clk 00:22:17]} {[%emt
00:00:15]} 36. Rdd1 {[%clk 00:06:03]} {[%emt 00:00:14]} d2 {[%clk 00:22:25]}
{[%emt 00:00:22]} 37. Re2 {[%clk 00:05:37]} {[%emt 00:00:55]} Qc2 {[%clk
00:22:43]} {[%emt 00:00:12]} 38. Rf1 {[%clk 00:03:11]} {[%emt 00:02:56]} d1=Q
{[%clk 00:21:52]} {[%emt 00:01:21]} 39. Rxd1 {[%clk 00:03:00]} {[%emt
00:00:41]} Qxd1+ {[%clk 00:21:56]} {[%emt 00:00:26]} 40. Qe1 {[%clk 00:02:58]}
{[%emt 00:00:32]} Qd6 {[%clk 00:21:25]} {[%emt 00:01:00]} 41. Nb4 {[%clk
00:03:16]} {[%emt 00:00:14]} g5 {[%clk 00:20:34]} {[%emt 00:01:21]} 42. h3
{[%clk 00:03:14]} {[%emt 00:00:31]} Qe6 {[%clk 00:16:05]} {[%emt 00:04:57]} 43.
a3 {[%clk 00:02:51]} {[%emt 00:00:56]} f3 {[%clk 00:15:26]} {[%emt 00:01:08]}
44. gxf3 {[%clk 00:02:51]} {[%emt 00:00:29]} Rxf3 {[%clk 00:15:03]} {[%emt
00:00:54]} 45. Rh2 {[%clk 00:02:37]} {[%emt 00:00:45]} e2 {[%clk 00:15:16]}
{[%emt 00:00:16]} 46. Rf2 {[%clk 00:02:38]} {[%emt 00:00:28]} Rxf2 {[%clk
00:15:25]} {[%emt 00:00:22]} 47. Kxf2 {[%clk 00:03:00]} {[%emt 00:00:08]} Qxh3
{[%clk 00:15:42]} {[%emt 00:00:13]} 48. Nd3 {[%clk 00:02:55]} {[%emt 00:00:35]}
0-1

[Event "NJSK 2021 Jeugd C"]
[Site "Almelo, Netherlands"]
[Date "2021.08.03"]
[Round "4.4"]
[White "Smeets, Kobe"]
[Black "Dekker, Thiemen"]
[Result "1-0"]
[TimeControl "90min + 30sec/move"]
[WhiteElo "1897"]
[BlackElo "1806"]

1. e4 {[%clk 01:30:58]} {[%emt 00:00:02]} e5 {[%clk 01:30:56]} {[%emt
00:00:05]} 2. Nf3 {[%clk 01:31:24]} {[%emt 00:00:04]} Nc6 {[%clk 01:31:23]}
{[%emt 00:00:02]} 3. Bb5 {[%clk 01:31:47]} {[%emt 00:00:07]} f5 {[%clk
01:31:43]} {[%emt 00:00:10]} 4. Nc3 {[%clk 01:32:09]} {[%emt 00:00:08]} fxe4
{[%clk 01:31:30]} {[%emt 00:00:43]} 5. Nxe4 {[%clk 01:32:31]} {[%emt 00:00:08]}
Nf6 {[%clk 01:30:56]} {[%emt 00:01:03]} 6. Qe2 {[%clk 01:31:43]} {[%emt
00:01:19]} Be7 {[%clk 01:29:34]} {[%emt 00:01:53]} 7. Bxc6 {[%clk 01:30:40]}
{[%emt 00:01:32]} bxc6 {[%clk 01:29:50]} {[%emt 00:00:14]} 8. Nxe5 {[%clk
01:30:41]} {[%emt 00:00:29]} O-O {[%clk 01:29:04]} {[%emt 00:01:16]} 9. O-O
{[%clk 01:29:35]} {[%emt 00:01:35]} a5 {[%clk 01:26:06]} {[%emt 00:03:28]} 10.
d3 {[%clk 01:27:43]} {[%emt 00:02:22]} Nxe4 {[%clk 01:25:23]} {[%emt 00:01:14]}
11. Qxe4 {[%clk 01:27:37]} {[%emt 00:00:36]} d5 {[%clk 01:22:19]} {[%emt
00:03:34]} 12. Qe2 {[%clk 01:24:47]} {[%emt 00:03:20]} Bd6 {[%clk 01:19:29]}
{[%emt 00:03:20]} 13. d4 {[%clk 01:22:53]} {[%emt 00:02:23]} Ba6 {[%clk
01:17:44]} {[%emt 00:02:16]} 14. c4 {[%clk 01:21:49]} {[%emt 00:01:34]} Bxe5
{[%clk 01:16:40]} {[%emt 00:01:34]} 15. Qxe5 {[%clk 01:22:08]} {[%emt
00:00:11]} Bxc4 {[%clk 01:16:19]} {[%emt 00:00:52]} 16. Re1 {[%clk 01:14:20]}
{[%emt 00:08:17]} Re8 {[%clk 01:13:18]} {[%emt 00:03:31]} 17. Qxe8+ {[%clk
01:14:40]} {[%emt 00:00:10]} Qxe8 {[%clk 01:13:43]} {[%emt 00:00:05]} 18. Rxe8+
{[%clk 01:15:04]} {[%emt 00:00:06]} Rxe8 {[%clk 01:14:10]} {[%emt 00:00:02]} 19.
Bf4 {[%clk 01:15:10]} {[%emt 00:00:25]} a4 {[%clk 01:12:30]} {[%emt 00:02:10]}
20. Bd2 {[%clk 00:59:21]} {[%emt 00:16:17]} Re2 {[%clk 01:12:03]} {[%emt
00:00:58]} 21. Bc3 {[%clk 00:59:43]} {[%emt 00:00:08]} Rc2 {[%clk 01:11:41]}
{[%emt 00:00:54]} 22. a3 {[%clk 00:59:59]} {[%emt 00:00:14]} Re2 {[%clk
01:11:18]} {[%emt 00:00:52]} 23. Re1 {[%clk 00:59:33]} {[%emt 00:00:55]} Kf7
{[%clk 01:11:18]} {[%emt 00:00:31]} 24. Rxe2 {[%clk 00:59:52]} {[%emt
00:00:11]} Bxe2 {[%clk 01:11:42]} {[%emt 00:00:06]} 25. Ba5 {[%clk 01:00:18]}
{[%emt 00:00:04]} c5 {[%clk 01:10:58]} {[%emt 00:01:14]} 26. dxc5 {[%clk
01:00:03]} {[%emt 00:00:44]} c6 {[%clk 01:11:21]} {[%emt 00:00:07]} 27. Bc3
{[%clk 01:00:22]} {[%emt 00:00:11]} g6 {[%clk 01:11:34]} {[%emt 00:00:17]} 28.
f3 {[%clk 00:59:19]} {[%emt 00:01:33]} Ke6 {[%clk 01:11:17]} {[%emt 00:00:47]}
29. Bd4 {[%clk 00:59:35]} {[%emt 00:00:13]} Kf5 {[%clk 01:11:28]} {[%emt
00:00:20]} 30. Kf2 {[%clk 00:59:35]} {[%emt 00:00:30]} Bc4 {[%clk 01:11:43]}
{[%emt 00:00:16]} 31. g3 {[%clk 00:51:34]} {[%emt 00:08:30]} h5 {[%clk
01:11:31]} {[%emt 00:00:43]} 32. h3 {[%clk 00:50:27]} {[%emt 00:01:35]} Bb3
{[%clk 01:10:16]} {[%emt 00:01:46]} 33. Ke3 {[%clk 00:50:39]} {[%emt 00:00:18]}
Bc4 {[%clk 01:09:21]} {[%emt 00:01:26]} 34. g4+ {[%clk 00:49:02]} {[%emt
00:02:07]} hxg4 {[%clk 01:08:57]} {[%emt 00:00:53]} 35. fxg4+ {[%clk 00:49:04]}
{[%emt 00:00:28]} Kg5 {[%clk 01:08:42]} {[%emt 00:00:45]} 36. Kf3 {[%clk
00:49:25]} {[%emt 00:00:09]} Bf1 {[%clk 01:07:37]} {[%emt 00:01:35]} 37. Kg3
{[%clk 00:49:46]} {[%emt 00:00:08]} Kh6 {[%clk 01:06:06]} {[%emt 00:02:03]} 38.
h4 {[%clk 00:49:32]} {[%emt 00:00:42]} g5 {[%clk 01:05:46]} {[%emt 00:00:51]}
39. Be3 {[%clk 00:49:53]} {[%emt 00:00:09]} Kg6 {[%clk 01:05:23]} {[%emt
00:00:52]} 40. Bxg5 {[%clk 00:49:57]} {[%emt 00:00:26]} d4 {[%clk 01:04:25]}
{[%emt 00:01:29]} 41. Bd2 {[%clk 00:49:57]} {[%emt 00:00:29]} Be2 {[%clk
01:03:39]} {[%emt 00:01:16]} 42. Kf4 {[%clk 00:49:26]} {[%emt 00:01:01]} Kf6
{[%clk 01:03:08]} {[%emt 00:01:01]} 43. h5 {[%clk 00:47:26]} {[%emt 00:02:29]}
Ke6 {[%clk 01:01:50]} {[%emt 00:01:49]} 44. Kg3 {[%clk 00:35:45]} {[%emt
00:12:11]} Kd5 {[%clk 01:00:26]} {[%emt 00:01:54]} 45. Kh4 {[%clk 00:35:28]}
{[%emt 00:00:46]} Kc4 {[%clk 00:57:56]} {[%emt 00:03:00]} 46. g5 {[%clk
00:35:18]} {[%emt 00:00:40]} Kb3 {[%clk 00:58:08]} {[%emt 00:00:18]} 47. g6
{[%clk 00:35:10]} {[%emt 00:00:38]} Kxb2 {[%clk 00:58:23]} {[%emt 00:00:16]} 48.
h6 {[%clk 00:35:26]} {[%emt 00:00:14]} Kxa3 {[%clk 00:57:53]} {[%emt 00:01:01]}
49. h7 {[%clk 00:35:37]} {[%emt 00:00:18]} 1-0

[Event "NJSK 2021 Jeugd C"]
[Site "Almelo, Netherlands"]
[Date "2021.08.03"]
[Round "4.5"]
[White "Aravindhan, Achyuth"]
[Black "Bakija, Alan"]
[Result "0-1"]
[TimeControl "90min + 30sec/move"]
[WhiteElo "1031"]
[BlackElo "1870"]

1. e4 {[%clk 01:30:58]} {[%emt 00:00:01]} c6 {[%clk 01:30:57]} {[%emt
00:00:03]} 2. d4 {[%clk 01:31:23]} {[%emt 00:00:05]} d5 {[%clk 01:31:24]}
{[%emt 00:00:03]} 3. Nc3 {[%clk 01:31:47]} {[%emt 00:00:06]} dxe4 {[%clk
01:31:50]} {[%emt 00:00:04]} 4. Nxe4 {[%clk 01:32:09]} {[%emt 00:00:07]} Nf6
{[%clk 01:32:16]} {[%emt 00:00:06]} 5. Nxf6+ {[%clk 01:32:31]} {[%emt
00:00:07]} exf6 {[%clk 01:32:41]} {[%emt 00:00:05]} 6. Bf4 {[%clk 01:32:35]}
{[%emt 00:00:26]} Bd6 {[%clk 01:32:06]} {[%emt 00:01:05]} 7. Bxd6 {[%clk
01:32:56]} {[%emt 00:00:09]} Qxd6 {[%clk 01:32:31]} {[%emt 00:00:05]} 8. Nf3
{[%clk 01:33:09]} {[%emt 00:00:17]} Qb4+ {[%clk 01:31:04]} {[%emt 00:01:56]} 9.
Nd2 {[%clk 01:31:02]} {[%emt 00:02:37]} Qxd4 {[%clk 01:28:45]} {[%emt
00:02:50]} 10. c3 {[%clk 01:31:04]} {[%emt 00:00:28]} Qe5+ {[%clk 01:26:03]}
{[%emt 00:03:12]} 11. Qe2 {[%clk 01:30:33]} {[%emt 00:01:00]} O-O {[%clk
01:26:12]} {[%emt 00:00:22]} 12. Nf3 {[%clk 01:30:43]} {[%emt 00:00:20]} Qxe2+
{[%clk 01:23:34]} {[%emt 00:03:08]} 13. Bxe2 {[%clk 01:31:02]} {[%emt
00:00:10]} Re8 {[%clk 01:24:03]} {[%emt 00:00:01]} 14. Rd1 {[%clk 01:31:05]}
{[%emt 00:00:27]} Bg4 {[%clk 01:20:46]} {[%emt 00:03:47]} 15. O-O {[%clk
01:31:03]} {[%emt 00:00:33]} Nd7 {[%clk 01:18:54]} {[%emt 00:02:22]} 16. Rxd7
{[%clk 01:30:05]} {[%emt 00:01:41]} Bxd7 {[%clk 01:18:06]} {[%emt 00:01:24]} 17.
Bc4 {[%clk 01:30:34]} {[%emt 00:00:25]} Be6 {[%clk 01:18:17]} {[%emt 00:00:24]}
18. Bxe6 {[%clk 01:30:34]} {[%emt 00:00:30]} fxe6 {[%clk 01:18:36]} {[%emt
00:00:10]} 19. Nd2 {[%clk 01:30:28]} {[%emt 00:00:36]} Rad8 {[%clk 01:18:59]}
{[%emt 00:00:08]} 20. Ne4 {[%emt 00:00:07]} Rd5 {[%emt 00:00:29]} 21. b4 {[%clk
01:20:50]} {[%emt 00:09:32]} b6 {[%clk 01:18:51]} {[%emt 00:00:38]} 22. a4
{[%clk 01:12:12]} {[%emt 00:09:08]} f5 {[%clk 01:19:05]} {[%emt 00:00:16]} 23.
Ng5 {[%clk 01:11:50]} {[%emt 00:00:51]} Rd3 {[%clk 01:19:01]} {[%emt 00:00:34]}
24. Rc1 {[%clk 01:12:04]} {[%emt 00:00:17]} Red8 {[%clk 01:19:21]} {[%emt
00:00:10]} 25. Nxe6 {[%clk 01:12:22]} {[%emt 00:00:12]} Rd1+ {[%clk 01:19:45]}
{[%emt 00:00:05]} 0-1